[Event "Titled Tuesday Blitz August 17 2021"]
[White "Garcia Garcia, Alejandro"]
[Black "Wagh Suyog"]
[WhiteFideId "3516334"]
[BlackFideId "25071688"]
[WhiteElo "2131"]
[BlackElo "2219"]
[Result "0-1"]
[Round "07"]
[TimeControl "180+1"]
[Date "2021.08.17"]
[WhiteClock "0:00:04"]
[BlackClock "0:00:35"]

1. Nf3 {[%clk 0:03:00]}  g6 {[%clk 0:02:56]} 2. g3 {[%clk 0:03:01]}  Bg7 {[%clk 0:02:55]} 3. Bg2 {[%clk 0:03:02]}  d6 {[%clk 0:02:56]} 4. O-O {[%clk 0:03:03]}  Nc6 {[%clk 0:02:56]} 5. c4 {[%clk 0:03:03]}  Bd7 {[%clk 0:02:54]} 6. Nc3 {[%clk 0:03:04]}  Qc8 {[%clk 0:02:54]} 7. Nd5 {[%clk 0:03:00]}  Nf6 {[%clk 0:02:53]} 8. Rb1 {[%clk 0:02:57]}  h5 {[%clk 0:02:51]} 9. d4 {[%clk 0:02:54]}  h4 {[%clk 0:02:50]} 10. Nxh4 {[%clk 0:02:53]}  Nxd5 {[%clk 0:02:47]} 11. cxd5 {[%clk 0:02:52]}  Nxd4 {[%clk 0:02:47]} 12. Nf3 {[%clk 0:02:50]}  c5 {[%clk 0:02:20]} 13. e3 {[%clk 0:02:08]}  Nxf3+ {[%clk 0:02:05]} 14. Qxf3 {[%clk 0:02:08]}  Be5 {[%clk 0:01:57]} 15. e4 {[%clk 0:01:40]}  Bg4 {[%clk 0:01:55]} 16. Qd3 {[%clk 0:01:37]}  Bh3 {[%clk 0:01:55]} 17. Qf3 {[%clk 0:01:36]}  Bg4 {[%clk 0:01:52]} 18. Qd3 {[%clk 0:01:36]}  c4 {[%clk 0:01:52]} 19. Qe3 {[%clk 0:01:34]}  b5 {[%clk 0:01:52]} 20. f4 {[%clk 0:01:15]}  Bg7 {[%clk 0:01:52]} 21. e5 {[%clk 0:01:15]}  Kf8 {[%clk 0:01:49]} 22. Bd2 {[%clk 0:01:05]}  Bh3 {[%clk 0:01:47]} 23. Qf3 {[%clk 0:01:02]}  Bf5 {[%clk 0:01:43]} 24. Rbe1 {[%clk 0:00:57]}  Qc5+ {[%clk 0:01:36]} 25. Be3 {[%clk 0:00:55]}  Qb4 {[%clk 0:01:36]} 26. Bd4 {[%clk 0:00:46]}  Rd8 {[%clk 0:01:29]} 27. a3 {[%clk 0:00:41]}  Qa5 {[%clk 0:01:27]} 28. Rd1 {[%clk 0:00:26]}  Qc7 {[%clk 0:01:27]} 29. g4 {[%clk 0:00:22]}  Bd3 {[%clk 0:01:26]} 30. Rf2 {[%clk 0:00:22]}  Kg8 {[%clk 0:01:22]} 31. exd6 {[%clk 0:00:20]}  Qxd6 {[%clk 0:01:19]} 32. Be5 {[%clk 0:00:20]}  Qc5 {[%clk 0:01:17]} 33. Rc1 {[%clk 0:00:17]}  Qb6 {[%clk 0:01:04]} 34. Bxg7 {[%clk 0:00:17]}  Kxg7 {[%clk 0:01:04]} 35. f5 {[%clk 0:00:17]}  gxf5 {[%clk 0:00:52]} 36. gxf5 {[%clk 0:00:13]}  Rh6 {[%clk 0:00:53]} 37. Re1 {[%clk 0:00:11]}  Qf6 {[%clk 0:00:51]} 38. Qf4 {[%clk 0:00:10]}  Kh8 {[%clk 0:00:48]} 39. Re3 {[%clk 0:00:07]}  Rg8 {[%clk 0:00:44]} 40. Kh1 {[%clk 0:00:07]}  Rh7 {[%clk 0:00:40]} 41. Rg3 {[%clk 0:00:07]}  Qxb2 {[%clk 0:00:38]} 42. Rxb2 {[%clk 0:00:05]}  Rf8 {[%clk 0:00:34]} 43. Rf2 {[%clk 0:00:05]}  f6 {[%clk 0:00:34]} 44. Qe3 {[%clk 0:00:04]}  Rd8 {[%clk 0:00:34]} 45. Qe6 {[%clk 0:00:04]}  a5 {[%clk 0:00:34]} 46. Rh3 {[%clk 0:00:04]}  Rxh3 {[%clk 0:00:33]} 47. Bxh3 {[%clk 0:00:05]}  c3 {[%clk 0:00:34]} 48. Rf4 {[%clk 0:00:05]}  Bc4 {[%clk 0:00:34]} 49. Rh4+ {[%clk 0:00:05]}  Kg7 {[%clk 0:00:34]} 50. Rg4+ {[%clk 0:00:05]}  Kh6 {[%clk 0:00:35]} 51. Qf7 {[%clk 0:00:05]}  Bxd5+ {[%clk 0:00:34]} 52. Kg1 {[%clk 0:00:05]}  Bxf7 {[%clk 0:00:34]} 53. Rh4+ {[%clk 0:00:05]}  Kg7 {[%clk 0:00:34]} 54. Rg4+ {[%clk 0:00:05]}  Kf8 {[%clk 0:00:34]} 55. Rg2 {[%clk 0:00:05]}  b4 {[%clk 0:00:34]} 56. axb4 {[%clk 0:00:04]}  axb4 {[%clk 0:00:35]} 0-1


[Site "https://www.chess.com"]

[Event "Titled Tuesday Blitz August 17 2021"]
[White "Gunina, Valentina"]
[Black "Bobkov, Vadim"]
[WhiteFideId "4167570"]
[BlackFideId "34110876"]
[WhiteElo "2399"]
[BlackElo "2117"]
[Result "0-1"]
[Round "07"]
[TimeControl "180+1"]
[Date "2021.08.17"]
[WhiteClock "0:00:05"]
[BlackClock "0:00:03"]

1. d4 {[%clk 0:03:00]}  d5 {[%clk 0:03:00]} 2. c4 {[%clk 0:03:00]}  e6 {[%clk 0:03:00]} 3. Nf3 {[%clk 0:03:01]}  Nf6 {[%clk 0:03:00]} 4. Nc3 {[%clk 0:03:01]}  c6 {[%clk 0:03:01]} 5. Bg5 {[%clk 0:03:01]}  dxc4 {[%clk 0:03:01]} 6. e4 {[%clk 0:03:00]}  b5 {[%clk 0:03:01]} 7. e5 {[%clk 0:02:59]}  h6 {[%clk 0:03:02]} 8. Bh4 {[%clk 0:03:00]}  g5 {[%clk 0:03:03]} 9. Nxg5 {[%clk 0:03:00]}  Nd5 {[%clk 0:03:03]} 10. Nf3 {[%clk 0:02:57]}  Qa5 {[%clk 0:03:03]} 11. Rc1 {[%clk 0:02:53]}  Bb4 {[%clk 0:03:04]} 12. Be2 {[%clk 0:02:51]}  Nxc3 {[%clk 0:02:56]} 13. bxc3 {[%clk 0:02:50]}  Bxc3+ {[%clk 0:02:57]} 14. Kf1 {[%clk 0:02:51]}  Bb7 {[%clk 0:02:40]} 15. Bf6 {[%clk 0:02:42]}  Rf8 {[%clk 0:02:33]} 16. Qc2 {[%clk 0:02:39]}  Bb4 {[%clk 0:02:31]} 17. Bg7 {[%clk 0:02:40]}  Nd7 {[%clk 0:02:29]} 18. Bxf8 {[%clk 0:02:40]}  Bxf8 {[%clk 0:02:03]} 19. h4 {[%clk 0:02:35]}  O-O-O {[%clk 0:02:02]} 20. Kg1 {[%clk 0:02:34]}  c5 {[%clk 0:02:00]} 21. Kh2 {[%clk 0:02:35]}  cxd4 {[%clk 0:01:59]} 22. Nxd4 {[%clk 0:02:35]}  Nxe5 {[%clk 0:01:57]} 23. Rhd1 {[%clk 0:02:34]}  Bd6 {[%clk 0:01:38]} 24. Kg1 {[%clk 0:02:27]}  Bc7 {[%clk 0:01:20]} 25. Qb2 {[%clk 0:02:07]}  a6 {[%clk 0:01:04]} 26. a4 {[%clk 0:02:06]}  b4 {[%clk 0:00:34]} 27. Bxc4 {[%clk 0:02:05]}  Nxc4 {[%clk 0:00:34]} 28. Rxc4 {[%clk 0:02:05]}  Qd5 {[%clk 0:00:35]} 29. Rxc7+ {[%clk 0:01:50]}  Kxc7 {[%clk 0:00:36]} 30. f3 {[%clk 0:01:36]}  e5 {[%clk 0:00:36]} 31. Rc1+ {[%clk 0:01:35]}  Kb8 {[%clk 0:00:36]} 32. Nf5 {[%clk 0:01:33]}  a5 {[%clk 0:00:32]} 33. Nxh6 {[%clk 0:01:31]}  e4 {[%clk 0:00:30]} 34. fxe4 {[%clk 0:01:13]}  Qxe4 {[%clk 0:00:31]} 35. Qf2 {[%clk 0:01:13]}  b3 {[%clk 0:00:15]} 36. Nxf7 {[%clk 0:01:10]}  Rf8 {[%clk 0:00:10]} 37. Rf1 {[%clk 0:00:51]}  Rxf7 {[%clk 0:00:06]} 38. Qg3+ {[%clk 0:00:49]}  Rc7 {[%clk 0:00:07]} 39. Rf8+ {[%clk 0:00:47]}  Ka7 {[%clk 0:00:05]} 40. Qf2+ {[%clk 0:00:40]}  Ka6 {[%clk 0:00:05]} 41. Rf6+ {[%clk 0:00:26]}  Rc6 {[%clk 0:00:05]} 42. Rf4 {[%clk 0:00:19]}  Qb1+ {[%clk 0:00:03]} 43. Kh2 {[%clk 0:00:19]}  Qc2 {[%clk 0:00:03]} 44. Qf1+ {[%clk 0:00:17]}  Ka7 {[%clk 0:00:03]} 45. Rf5 {[%clk 0:00:14]}  Rc5 {[%clk 0:00:02]} 46. Rf2 {[%clk 0:00:12]}  Qc4 {[%clk 0:00:02]} 47. Rf4 {[%clk 0:00:12]}  Qxf1 {[%clk 0:00:02]} 48. Rxf1 {[%clk 0:00:12]}  Be4 {[%clk 0:00:02]} 49. Rf2 {[%clk 0:00:11]}  Rc2 {[%clk 0:00:02]} 50. Rf7+ {[%clk 0:00:10]}  Kb8 {[%clk 0:00:03]} 51. Rf6 {[%clk 0:00:05]}  b2 {[%clk 0:00:02]} 52. Rb6+ {[%clk 0:00:04]}  Ka7 {[%clk 0:00:03]} 53. Rb5 {[%clk 0:00:04]}  Rxg2+ {[%clk 0:00:03]} 54. Kh3 {[%clk 0:00:04]}  Rd2 {[%clk 0:00:03]} 55. Rxa5+ {[%clk 0:00:04]}  Kb6 {[%clk 0:00:03]} 56. Rb5+ {[%clk 0:00:05]}  Ka6 {[%clk 0:00:03]} 0-1


[Site "https://www.chess.com"]

[Event "Titled Tuesday Blitz August 17 2021"]
[White "Gupta, Abhijeet"]
[Black "Nogerbek, Kazybek"]
[WhiteFideId "5010608"]
[BlackFideId "13710427"]
[WhiteElo "2549"]
[BlackElo "2436"]
[Result "0-1"]
[Round "07"]
[TimeControl "180+1"]
[Date "2021.08.17"]
[WhiteClock "0:00:03"]
[BlackClock "0:00:07"]

1. d4 {[%clk 0:03:00]}  Nf6 {[%clk 0:02:58]} 2. c4 {[%clk 0:03:01]}  e6 {[%clk 0:02:58]} 3. Nf3 {[%clk 0:03:01]}  d5 {[%clk 0:02:58]} 4. g3 {[%clk 0:03:01]}  Be7 {[%clk 0:02:56]} 5. Bg2 {[%clk 0:03:01]}  O-O {[%clk 0:02:57]} 6. O-O {[%clk 0:03:02]}  a5 {[%clk 0:02:56]} 7. Nbd2 {[%clk 0:02:58]}  c6 {[%clk 0:02:50]} 8. Qc2 {[%clk 0:02:58]}  b5 {[%clk 0:02:44]} 9. c5 {[%clk 0:02:52]}  b4 {[%clk 0:02:40]} 10. a3 {[%clk 0:02:48]}  Ba6 {[%clk 0:02:33]} 11. Re1 {[%clk 0:02:47]}  Nbd7 {[%clk 0:02:30]} 12. e4 {[%clk 0:02:40]}  dxe4 {[%clk 0:02:29]} 13. Nxe4 {[%clk 0:02:38]}  Nxe4 {[%clk 0:02:29]} 14. Qxe4 {[%clk 0:02:39]}  Bb5 {[%clk 0:02:29]} 15. a4 {[%clk 0:02:28]}  Nf6 {[%clk 0:02:27]} 16. Qc2 {[%clk 0:02:27]}  Ba6 {[%clk 0:02:19]} 17. Ne5 {[%clk 0:02:27]}  Qxd4 {[%clk 0:02:06]} 18. Nxc6 {[%clk 0:02:03]}  Qxc5 {[%clk 0:02:06]} 19. Qxc5 {[%clk 0:00:52]}  Bxc5 {[%clk 0:02:06]} 20. Be3 {[%clk 0:00:52]}  Bxe3 {[%clk 0:01:52]} 21. Rxe3 {[%clk 0:00:53]}  Nd5 {[%clk 0:01:17]} 22. Bxd5 {[%clk 0:00:36]}  exd5 {[%clk 0:01:17]} 23. Rd1 {[%clk 0:00:35]}  Bb7 {[%clk 0:01:01]} 24. Ne7+ {[%clk 0:00:32]}  Kh8 {[%clk 0:01:02]} 25. Nxd5 {[%clk 0:00:32]}  Rfd8 {[%clk 0:01:00]} 26. Red3 {[%clk 0:00:33]}  g6 {[%clk 0:01:01]} 27. f4 {[%clk 0:00:24]}  Rac8 {[%clk 0:01:00]} 28. Ne3 {[%clk 0:00:20]}  Rxd3 {[%clk 0:00:59]} 29. Rxd3 {[%clk 0:00:21]}  Rc1+ {[%clk 0:00:57]} 30. Kf2 {[%clk 0:00:21]}  Rb1 {[%clk 0:00:53]} 31. Nc4 {[%clk 0:00:21]}  Ba6 {[%clk 0:00:46]} 32. Rd8+ {[%clk 0:00:21]}  Kg7 {[%clk 0:00:46]} 33. Nxa5 {[%clk 0:00:21]}  Rxb2+ {[%clk 0:00:47]} 34. Ke3 {[%clk 0:00:21]}  Ra2 {[%clk 0:00:42]} 35. Rb8 {[%clk 0:00:21]}  Rxa4 {[%clk 0:00:39]} 36. Nc6 {[%clk 0:00:22]}  Ra3+ {[%clk 0:00:36]} 37. Kd4 {[%clk 0:00:21]}  b3 {[%clk 0:00:29]} 38. Ne5 {[%clk 0:00:20]}  f6 {[%clk 0:00:24]} 39. Nc6 {[%clk 0:00:18]}  Ra4+ {[%clk 0:00:21]} 40. Ke3 {[%clk 0:00:16]}  Bc4 {[%clk 0:00:19]} 41. Nd4 {[%clk 0:00:15]}  Ra2 {[%clk 0:00:18]} 42. h4 {[%clk 0:00:13]}  b2 {[%clk 0:00:18]} 43. g4 {[%clk 0:00:12]}  Ra3+ {[%clk 0:00:14]} 44. Kf2 {[%clk 0:00:10]}  Bb3 {[%clk 0:00:13]} 45. Rb7+ {[%clk 0:00:07]}  Kf8 {[%clk 0:00:13]} 46. Rb8+ {[%clk 0:00:06]}  Kf7 {[%clk 0:00:13]} 47. Rb7+ {[%clk 0:00:06]}  Ke8 {[%clk 0:00:13]} 48. Rb8+ {[%clk 0:00:07]}  Kd7 {[%clk 0:00:13]} 49. Nxb3 {[%clk 0:00:07]}  Kc7 {[%clk 0:00:09]} 50. Rb4 {[%clk 0:00:02]}  b1=Q {[%clk 0:00:09]} 51. Rc4+ {[%clk 0:00:03]}  Kd8 {[%clk 0:00:07]} 52. Nd2 {[%clk 0:00:03]}  Qd3 {[%clk 0:00:07]} 0-1


[Site "https://www.chess.com"]

[Event "Titled Tuesday Blitz August 17 2021"]
[White "Gurvich, Vitaly"]
[Black "Balabayeva, Xeniya"]
[WhiteFideId "24164852"]
[BlackFideId "13719688"]
[WhiteElo "2252"]
[BlackElo "1988"]
[Result "1-0"]
[Round "07"]
[TimeControl "180+1"]
[Date "2021.08.18"]
[WhiteClock "0:01:49"]
[BlackClock "0:00:01"]

1. g4 {[%clk 0:03:00]}  d5 {[%clk 0:00:19]} 2. Bg2 {[%clk 0:02:44]}  c5 {[%clk 0:00:18]} 3. h3 {[%clk 0:02:42]}  Nc6 {[%clk 0:00:18]} 4. d3 {[%clk 0:02:42]}  h6 {[%clk 0:00:17]} 5. Nc3 {[%clk 0:02:42]}  Nf6 {[%clk 0:00:17]} 6. e4 {[%clk 0:02:40]}  d4 {[%clk 0:00:17]} 7. Nce2 {[%clk 0:02:40]}  e5 {[%clk 0:00:17]} 8. f4 {[%clk 0:02:39]}  Bd6 {[%clk 0:00:16]} 9. Nf3 {[%clk 0:02:39]}  Qc7 {[%clk 0:00:15]} 10. f5 {[%clk 0:02:39]}  Bd7 {[%clk 0:00:15]} 11. a4 {[%clk 0:02:38]}  O-O-O {[%clk 0:00:15]} 12. b3 {[%clk 0:02:38]}  g5 {[%clk 0:00:13]} 13. Ng3 {[%clk 0:02:30]}  Rdg8 {[%clk 0:00:12]} 14. Bd2 {[%clk 0:02:25]}  Be7 {[%clk 0:00:10]} 15. Qe2 {[%clk 0:02:22]}  h5 {[%clk 0:00:09]} 16. Bxg5 {[%clk 0:02:21]}  hxg4 {[%clk 0:00:09]} 17. hxg4 {[%clk 0:02:22]}  Rxh1+ {[%clk 0:00:07]} 18. Bxh1 {[%clk 0:02:23]}  Nxg4 {[%clk 0:00:07]} 19. Bxe7 {[%clk 0:02:22]}  Nxe7 {[%clk 0:00:06]} 20. O-O-O {[%clk 0:02:23]}  Ne3 {[%clk 0:00:06]} 21. Nh5 {[%clk 0:02:22]}  Qd6 {[%clk 0:00:04]} 22. Rd2 {[%clk 0:02:16]}  f6 {[%clk 0:00:03]} 23. Qh2 {[%clk 0:02:13]}  Be8 {[%clk 0:00:03]} 24. Ng3 {[%clk 0:02:09]}  Qa6 {[%clk 0:00:03]} 25. Bg2 {[%clk 0:02:06]}  Kd8 {[%clk 0:00:03]} 26. Nf1 {[%clk 0:02:05]}  Qa5 {[%clk 0:00:02]} 27. Nxe3 {[%clk 0:02:03]}  dxe3 {[%clk 0:00:03]} 28. Re2 {[%clk 0:02:03]}  Qc3 {[%clk 0:00:04]} 29. Rxe3 {[%clk 0:02:03]}  Nc6 {[%clk 0:00:04]} 30. Qh6 {[%clk 0:02:02]}  Nb4 {[%clk 0:00:03]} 31. Qxf6+ {[%clk 0:02:01]}  Kc7 {[%clk 0:00:02]} 32. Re2 {[%clk 0:01:53]}  Na2+ {[%clk 0:00:01]} 33. Kb1 {[%clk 0:01:50]}  Nb4 {[%clk 0:00:01]} 34. Nxe5 {[%clk 0:01:49]} 1-0


[Site "https://www.chess.com"]

[Event "Titled Tuesday Blitz August 17 2021"]
[White "Ibarra Jerez, Jose Carlos"]
[Black "Tristan, Leonardo"]
[WhiteFideId "2226332"]
[BlackFideId "113816"]
[WhiteElo "2602"]
[BlackElo "2404"]
[Result "0-1"]
[Round "07"]
[TimeControl "180+1"]
[Date "2021.08.17"]
[WhiteClock "0:00:08"]
[BlackClock "0:00:08"]

1. e4 {[%clk 0:03:00]}  d5 {[%clk 0:03:00]} 2. exd5 {[%clk 0:03:00]}  Qxd5 {[%clk 0:03:01]} 3. Nc3 {[%clk 0:02:59]}  Qa5 {[%clk 0:03:01]} 4. d4 {[%clk 0:02:59]}  Nf6 {[%clk 0:03:01]} 5. Bd2 {[%clk 0:02:58]}  Bg4 {[%clk 0:03:01]} 6. f3 {[%clk 0:02:58]}  Bf5 {[%clk 0:03:01]} 7. g4 {[%clk 0:02:58]}  Bg6 {[%clk 0:03:01]} 8. f4 {[%clk 0:02:55]}  e6 {[%clk 0:02:45]} 9. f5 {[%clk 0:02:53]}  exf5 {[%clk 0:02:41]} 10. g5 {[%clk 0:02:51]}  Nfd7 {[%clk 0:01:46]} 11. Qe2+ {[%clk 0:02:49]}  Kd8 {[%clk 0:01:46]} 12. h4 {[%clk 0:02:32]}  Bb4 {[%clk 0:01:24]} 13. O-O-O {[%clk 0:02:22]}  f4 {[%clk 0:01:12]} 14. Bg2 {[%clk 0:02:16]}  Re8 {[%clk 0:01:01]} 15. Qc4 {[%clk 0:02:11]}  Nb6 {[%clk 0:00:46]} 16. Qb3 {[%clk 0:02:08]}  Nc6 {[%clk 0:00:38]} 17. a3 {[%clk 0:01:59]}  Bxc3 {[%clk 0:00:36]} 18. Bxc3 {[%clk 0:01:58]}  Qa4 {[%clk 0:00:29]} 19. d5 {[%clk 0:01:43]}  Ne5 {[%clk 0:00:23]} 20. Qxa4 {[%clk 0:01:00]}  Nxa4 {[%clk 0:00:24]} 21. Bd4 {[%clk 0:01:01]}  Ng4 {[%clk 0:00:24]} 22. b3 {[%clk 0:00:50]}  Nb6 {[%clk 0:00:24]} 23. h5 {[%clk 0:00:41]}  Be4 {[%clk 0:00:24]} 24. Bxe4 {[%clk 0:00:33]}  Rxe4 {[%clk 0:00:25]} 25. Nf3 {[%clk 0:00:33]}  Ne3 {[%clk 0:00:18]} 26. Rd2 {[%clk 0:00:30]}  Nf5 {[%clk 0:00:19]} 27. Bb2 {[%clk 0:00:25]}  Nd7 {[%clk 0:00:15]} 28. g6 {[%clk 0:00:23]}  fxg6 {[%clk 0:00:14]} 29. hxg6 {[%clk 0:00:24]}  h6 {[%clk 0:00:15]} 30. Rh5 {[%clk 0:00:18]}  Ng3 {[%clk 0:00:13]} 31. Rh4 {[%clk 0:00:19]}  Nf5 {[%clk 0:00:13]} 32. Rh5 {[%clk 0:00:18]}  Ng3 {[%clk 0:00:14]} 33. Rh3 {[%clk 0:00:19]}  Nf5 {[%clk 0:00:14]} 34. Bc3 {[%clk 0:00:16]}  Ke7 {[%clk 0:00:14]} 35. Bb4+ {[%clk 0:00:12]}  Ke8 {[%clk 0:00:13]} 36. Ng5 {[%clk 0:00:11]}  Re1+ {[%clk 0:00:12]} 37. Kb2 {[%clk 0:00:11]}  a5 {[%clk 0:00:12]} 38. Ne6 {[%clk 0:00:06]}  Rc8 {[%clk 0:00:07]} 39. Bxa5 {[%clk 0:00:06]}  b6 {[%clk 0:00:07]} 40. Bc3 {[%clk 0:00:06]}  Re3 {[%clk 0:00:08]} 41. Rh5 {[%clk 0:00:05]}  Ng3 {[%clk 0:00:06]} 42. Nxg7+ {[%clk 0:00:06]}  Kf8 {[%clk 0:00:06]} 43. Rxh6 {[%clk 0:00:06]}  Rxc3 {[%clk 0:00:06]} 44. Rh8+ {[%clk 0:00:04]}  Kxg7 {[%clk 0:00:07]} 45. Rxc8 {[%clk 0:00:05]}  Rc5 {[%clk 0:00:06]} 46. b4 {[%clk 0:00:03]}  Rc4 {[%clk 0:00:06]} 47. Kb3 {[%clk 0:00:04]}  b5 {[%clk 0:00:07]} 48. d6 {[%clk 0:00:04]}  Ne4 {[%clk 0:00:06]} 49. Rxc7 {[%clk 0:00:04]}  Nxd2+ {[%clk 0:00:07]} 50. Kb2 {[%clk 0:00:04]}  Rxc7 {[%clk 0:00:06]} 51. dxc7 {[%clk 0:00:05]}  Nb6 {[%clk 0:00:07]} 52. Kc3 {[%clk 0:00:06]}  Ne4+ {[%clk 0:00:07]} 53. Kd4 {[%clk 0:00:06]}  f3 {[%clk 0:00:07]} 54. Ke3 {[%clk 0:00:06]}  f2 {[%clk 0:00:07]} 55. Ke2 {[%clk 0:00:06]}  Kxg6 {[%clk 0:00:07]} 56. c4 {[%clk 0:00:07]}  bxc4 {[%clk 0:00:07]} 57. a4 {[%clk 0:00:08]}  c3 {[%clk 0:00:07]} 58. a5 {[%clk 0:00:09]}  c2 {[%clk 0:00:08]} 59. axb6 {[%clk 0:00:08]}  c1=Q {[%clk 0:00:08]} 0-1


[Site "https://www.chess.com"]

[Event "Titled Tuesday Blitz August 17 2021"]
[White "Idani, Pouya"]
[Black "Piesik, Piotr"]
[WhiteFideId "12510130"]
[BlackFideId "1136194"]
[WhiteElo "2610"]
[BlackElo "2395"]
[Result "1-0"]
[Round "07"]
[TimeControl "180+1"]
[Date "2021.08.17"]
[WhiteClock "0:00:05"]
[BlackClock "0:00:39"]

1. e4 {[%clk 0:03:00]}  g6 {[%clk 0:02:59]} 2. d4 {[%clk 0:03:00]}  Bg7 {[%clk 0:03:00]} 3. Nc3 {[%clk 0:03:00]}  c6 {[%clk 0:03:00]} 4. Be3 {[%clk 0:02:57]}  d5 {[%clk 0:03:00]} 5. Qd2 {[%clk 0:02:56]}  dxe4 {[%clk 0:02:59]} 6. Nxe4 {[%clk 0:02:55]}  Nf6 {[%clk 0:03:00]} 7. Nxf6+ {[%clk 0:02:52]}  Bxf6 {[%clk 0:03:01]} 8. h4 {[%clk 0:02:48]}  h5 {[%clk 0:03:00]} 9. Nf3 {[%clk 0:02:48]}  Be6 {[%clk 0:02:59]} 10. Ng5 {[%clk 0:02:45]}  Bxg5 {[%clk 0:02:59]} 11. Bxg5 {[%clk 0:02:44]}  Nd7 {[%clk 0:02:59]} 12. O-O-O {[%clk 0:02:37]}  Nb6 {[%clk 0:02:58]} 13. a3 {[%clk 0:02:16]}  Qd5 {[%clk 0:02:55]} 14. b3 {[%clk 0:02:14]}  a5 {[%clk 0:02:55]} 15. c4 {[%clk 0:02:12]}  Qd7 {[%clk 0:02:53]} 16. Qc3 {[%clk 0:02:03]}  f6 {[%clk 0:02:33]} 17. Be3 {[%clk 0:02:00]}  Bf5 {[%clk 0:02:33]} 18. d5 {[%clk 0:01:49]}  Nc8 {[%clk 0:02:30]} 19. Be2 {[%clk 0:01:47]}  cxd5 {[%clk 0:02:28]} 20. Rxd5 {[%clk 0:01:47]}  Qe6 {[%clk 0:02:26]} 21. Rhd1 {[%clk 0:01:41]}  O-O {[%clk 0:02:22]} 22. Rxa5 {[%clk 0:01:32]}  Rxa5 {[%clk 0:02:18]} 23. Qxa5 {[%clk 0:01:33]}  Nd6 {[%clk 0:02:16]} 24. Qd5 {[%clk 0:01:31]}  Qxd5 {[%clk 0:02:16]} 25. Rxd5 {[%clk 0:01:32]}  Be4 {[%clk 0:02:15]} 26. Rc5 {[%clk 0:01:27]}  Bxg2 {[%clk 0:02:15]} 27. Rc7 {[%clk 0:01:27]}  Kf7 {[%clk 0:02:13]} 28. c5 {[%clk 0:01:04]}  Nf5 {[%clk 0:02:13]} 29. Bc4+ {[%clk 0:01:04]}  Kg7 {[%clk 0:02:14]} 30. b4 {[%clk 0:00:56]}  g5 {[%clk 0:02:05]} 31. hxg5 {[%clk 0:00:51]}  h4 {[%clk 0:02:05]} 32. gxf6+ {[%clk 0:00:48]}  Kxf6 {[%clk 0:02:05]} 33. Bf4 {[%clk 0:00:38]}  h3 {[%clk 0:02:04]} 34. b5 {[%clk 0:00:34]}  Rd8 {[%clk 0:02:01]} 35. Bh2 {[%clk 0:00:21]}  Rd4 {[%clk 0:01:57]} 36. Be2 {[%clk 0:00:19]}  Rd5 {[%clk 0:01:42]} 37. c6 {[%clk 0:00:17]}  bxc6 {[%clk 0:01:42]} 38. b6 {[%clk 0:00:17]}  Nd4 {[%clk 0:01:27]} 39. Bd3 {[%clk 0:00:11]}  Nb3+ {[%clk 0:01:19]} 40. Kc2 {[%clk 0:00:10]}  Nc5 {[%clk 0:01:15]} 41. Bc4 {[%clk 0:00:10]}  Be4+ {[%clk 0:01:13]} 42. Kc3 {[%clk 0:00:11]}  Na4+ {[%clk 0:01:10]} 43. Kb3 {[%clk 0:00:11]}  Rd4 {[%clk 0:00:53]} 44. b7 {[%clk 0:00:07]}  Nc5+ {[%clk 0:00:44]} 45. Kc3 {[%clk 0:00:07]}  Nxb7 {[%clk 0:00:41]} 46. Kxd4 {[%clk 0:00:06]}  Bf3 {[%clk 0:00:39]} 47. Ke3 {[%clk 0:00:05]} 1-0


[Site "https://www.chess.com"]

[Event "Titled Tuesday Blitz August 17 2021"]
[White "Iskusnyh, Sergei"]
[Black "Federzoni, Enzo"]
[WhiteFideId "4120027"]
[BlackFideId "2173301"]
[WhiteElo "2492"]
[BlackElo "1956"]
[Result "1-0"]
[Round "07"]
[TimeControl "180+1"]
[Date "2021.08.17"]
[WhiteClock "0:00:31"]
[BlackClock "0:01:08"]

1. d4 {[%clk 0:03:00]}  Nf6 {[%clk 0:02:58]} 2. c4 {[%clk 0:03:00]}  g6 {[%clk 0:02:57]} 3. g3 {[%clk 0:03:00]}  Bg7 {[%clk 0:02:48]} 4. Bg2 {[%clk 0:02:58]}  c5 {[%clk 0:02:49]} 5. dxc5 {[%clk 0:02:57]}  Qa5+ {[%clk 0:02:46]} 6. Nc3 {[%clk 0:02:56]}  Qxc5 {[%clk 0:02:47]} 7. Bd2 {[%clk 0:02:56]}  O-O {[%clk 0:02:46]} 8. Rc1 {[%clk 0:02:54]}  a6 {[%clk 0:02:46]} 9. Nh3 {[%clk 0:02:51]}  d6 {[%clk 0:02:41]} 10. O-O {[%clk 0:02:47]}  Qc7 {[%clk 0:02:41]} 11. Nf4 {[%clk 0:02:44]}  Nc6 {[%clk 0:02:38]} 12. Ncd5 {[%clk 0:02:43]}  Nxd5 {[%clk 0:02:38]} 13. cxd5 {[%clk 0:02:43]}  Bxb2 {[%clk 0:02:15]} 14. Rc2 {[%clk 0:02:38]}  Bg7 {[%clk 0:02:00]} 15. dxc6 {[%clk 0:02:37]}  bxc6 {[%clk 0:02:01]} 16. Rxc6 {[%clk 0:02:30]}  Qd8 {[%clk 0:02:01]} 17. Nd5 {[%clk 0:02:23]}  Bd7 {[%clk 0:01:52]} 18. Rc1 {[%clk 0:02:10]}  e6 {[%clk 0:01:52]} 19. Nb4 {[%clk 0:01:44]}  Rb8 {[%clk 0:01:41]} 20. Nc6 {[%clk 0:01:43]}  Bxc6 {[%clk 0:01:39]} 21. Rxc6 {[%clk 0:01:43]}  Rb2 {[%clk 0:01:34]} 22. Rxa6 {[%clk 0:01:38]}  d5 {[%clk 0:01:34]} 23. a4 {[%clk 0:01:26]}  Qc7 {[%clk 0:01:30]} 24. Bf4 {[%clk 0:01:17]}  Qb7 {[%clk 0:01:30]} 25. Ra5 {[%clk 0:01:02]}  Rc8 {[%clk 0:01:30]} 26. Qd3 {[%clk 0:00:51]}  Rc3 {[%clk 0:01:24]} 27. Qa6 {[%clk 0:00:47]}  Qd7 {[%clk 0:01:17]} 28. Rb5 {[%clk 0:00:38]}  Rbc2 {[%clk 0:01:12]} 29. Rb8+ {[%clk 0:00:36]}  Rc8 {[%clk 0:01:11]} 30. Rfb1 {[%clk 0:00:33]}  h6 {[%clk 0:01:09]} 31. Rxc8+ {[%clk 0:00:30]}  Rxc8 {[%clk 0:01:09]} 32. Qxc8+ {[%clk 0:00:30]}  Qxc8 {[%clk 0:01:08]} 33. Rb8 {[%clk 0:00:31]} 1-0


[Site "https://www.chess.com"]